[Event "Early-Titled-Tuesday-Blitz-December-26-2023"]
[Site "Chess.com"]
[Date "2023.12.26"]
[Round "3"]
[White "Bauman_Guy"]
[Black "Druid24"]
[Result "1-0"]
[WhiteElo "2896"]
[BlackElo "2691"]
[TimeControl "180+1"]
[EndTime "8:29:28 PST"]
[Termination "Bauman_Guy won by resignation"]

1. e4 {[%clk 0:03:00.9]} 1... c5 {[%clk 0:03:00.5]} 2. Nf3 {[%clk 0:03:01.2]}
2... e6 {[%clk 0:03:01.1]} 3. d4 {[%clk 0:03:01]} 3... cxd4 {[%clk 0:03:02]} 4.
Nxd4 {[%clk 0:03:01.9]} 4... Nc6 {[%clk 0:03:02.7]} 5. Nc3 {[%clk 0:03:01.8]}
5... Nf6 {[%clk 0:03:02.8]} 6. Ndb5 {[%clk 0:03:01.6]} 6... d6 {[%clk
0:03:02.8]} 7. Bf4 {[%clk 0:03:01.5]} 7... e5 {[%clk 0:03:03.4]} 8. Bg5 {[%clk
0:03:01.8]} 8... a6 {[%clk 0:03:03.6]} 9. Na3 {[%clk 0:03:01.9]} 9... b5 {[%clk
0:03:03.5]} 10. Bxf6 {[%clk 0:03:02.5]} 10... Be7 {[%clk 0:03:04.2]} 11. Nd5
{[%clk 0:03:03.4]} 11... Bxf6 {[%clk 0:03:03.3]} 12. g3 {[%clk 0:02:59]} 12...
Rb8 {[%clk 0:02:50.9]} 13. Bg2 {[%clk 0:02:57.2]} 13... O-O {[%clk 0:02:50.1]}
14. O-O {[%clk 0:02:56.7]} 14... Bg5 {[%clk 0:02:49.4]} 15. c3 {[%clk
0:02:56.4]} 15... Ne7 {[%clk 0:02:44.7]} 16. Nc2 {[%clk 0:02:55.6]} 16... Nxd5
{[%clk 0:02:44.7]} 17. Qxd5 {[%clk 0:02:55.7]} 17... Be6 {[%clk 0:02:44.6]} 18.
Qd1 {[%clk 0:02:54.2]} 18... Qb6 {[%clk 0:02:27.5]} 19. Nb4 {[%clk 0:02:49.9]}
19... a5 {[%clk 0:02:23.7]} 20. Nd5 {[%clk 0:02:46.6]} 20... Qc5 {[%clk
0:02:23.9]} 21. b4 {[%clk 0:02:23.8]} 21... Qc4 {[%clk 0:02:16.2]} 22. bxa5
{[%clk 0:01:48.3]} 22... Bxd5 {[%clk 0:02:14.8]} 23. Qxd5 {[%clk 0:01:49.2]}
23... Qxd5 {[%clk 0:02:15.2]} 24. exd5 {[%clk 0:01:50.1]} 24... Bd2 {[%clk
0:02:12.7]} 25. a6 {[%clk 0:01:24.3]} 25... Bxc3 {[%clk 0:01:05.7]} 26. Rab1
{[%clk 0:01:22.5]} 26... Bd4 {[%clk 0:00:39.2]} 27. Rfc1 {[%clk 0:01:19.1]}
27... Rb6 {[%clk 0:00:39.4]} 28. Rc6 {[%clk 0:01:18.9]} 28... Ra8 {[%clk
0:00:12.9]} 29. Rxb6 {[%clk 0:01:00.8]} 29... Bxb6 {[%clk 0:00:13.8]} 30. Rxb5
{[%clk 0:01:01.7]} 30... Rxa6 {[%clk 0:00:14.3]} 31. Bf1 {[%clk 0:01:01.8]}
31... Ba7 {[%clk 0:00:14.7]} 32. Bc4 {[%clk 0:00:53]} 32... g6 {[%clk
0:00:10.1]} 33. Bb3 {[%clk 0:00:44.9]} 33... Bc5 {[%clk 0:00:06.9]} 34. a4
{[%clk 0:00:44.8]} 34... Kg7 {[%clk 0:00:06.4]} 35. Kf1 {[%clk 0:00:45]} 35...
h5 {[%clk 0:00:06.8]} 36. Ke2 {[%clk 0:00:44.9]} 36... f5 {[%clk 0:00:06.4]} 37.
f3 {[%clk 0:00:41.4]} 37... Kf6 {[%clk 0:00:06.4]} 38. a5 {[%clk 0:00:36.8]}
38... Bd4 {[%clk 0:00:04.8]} 39. Kd3 {[%clk 0:00:35.9]} 39... g5 {[%clk
0:00:04.1]} 40. Kc4 {[%clk 0:00:26.5]} 40... g4 {[%clk 0:00:04.3]} 41. fxg4
{[%clk 0:00:20.5]} 41... hxg4 {[%clk 0:00:05.2]} 42. Kb4 {[%clk 0:00:20.8]}
42... Ra7 {[%clk 0:00:04.9]} 43. Bc4 {[%clk 0:00:20.4]} 43... e4 {[%clk
0:00:05.3]} 44. Rb8 {[%clk 0:00:16.2]} 44... Bc5+ {[%clk 0:00:04.7]} 45. Kb5
{[%clk 0:00:15.2]} 45... Ke5 {[%clk 0:00:05.3]} 46. a6 {[%clk 0:00:14.9]} 46...
Re7 {[%clk 0:00:03.3]} 47. Rb7 {[%clk 0:00:13.9]} 47... Rxb7+ {[%clk 0:00:03.2]}
48. axb7 {[%clk 0:00:14.8]} 48... Ba7 {[%clk 0:00:04.1]} 49. Kc6 {[%clk
0:00:15.7]} 49... e3 {[%clk 0:00:04]} 50. Bd3 {[%clk 0:00:11.1]} 50... Kd4
{[%clk 0:00:04.2]} 51. Be2 {[%clk 0:00:10.9]} 51... Ke5 {[%clk 0:00:04.4]} 52.
Bd3 {[%clk 0:00:08.1]} 52... Bb8 {[%clk 0:00:04.8]} 53. Be2 {[%clk 0:00:06.1]}
53... Ke4 {[%clk 0:00:03.8]} 54. Bb5 {[%clk 0:00:03.8]} 54... Kf3 {[%clk
0:00:03.4]} 55. Kd7 {[%clk 0:00:04.3]} 55... e2 {[%clk 0:00:03.8]} 56. Bxe2+
{[%clk 0:00:04.7]} 56... Kxe2 {[%clk 0:00:04.7]} 57. Kc8 {[%clk 0:00:05.6]}
57... Ba7 {[%clk 0:00:05]} 58. Kc7 {[%clk 0:00:06.5]} 58... Kf3 {[%clk
0:00:02.5]} 59. Kxd6 {[%clk 0:00:06.8]} 59... Kg2 {[%clk 0:00:03.2]} 60. Ke6
{[%clk 0:00:07]} 60... Kxh2 {[%clk 0:00:03.7]} 61. d6 {[%clk 0:00:07.1]} 61...
f4 {[%clk 0:00:04.6]} 62. d7 {[%clk 0:00:07.3]} 62... fxg3 {[%clk 0:00:03.5]}
63. d8=Q {[%clk 0:00:07.5]} 63... g2 {[%clk 0:00:04.4]} 64. Qh4+ {[%clk
0:00:06.3]} 64... Kg1 {[%clk 0:00:04.8]} 65. Qxg4 {[%clk 0:00:06.7]} 65... Kh1
{[%clk 0:00:04.5]} 66. Qh3+ {[%clk 0:00:06.8]} 66... Kg1 {[%clk 0:00:05.1]} 67.
Qg3 {[%clk 0:00:04.1]} 67... Kf1 {[%clk 0:00:05.3]} 68. Qf3+ {[%clk 0:00:04.6]}
68... Kg1 {[%clk 0:00:05.8]} 69. Kf5 {[%clk 0:00:05.2]} 69... Kh2 {[%clk
0:00:06.2]} 70. Qh5+ {[%clk 0:00:05.6]} 70... Kg3 {[%clk 0:00:06.8]} 71. Qg4+
{[%clk 0:00:06.2]} 71... Kh2 {[%clk 0:00:06.8]} 72. Qh4+ {[%clk 0:00:06.5]}
72... Kg1 {[%clk 0:00:07.4]} 73. Ke4 {[%clk 0:00:07]} 73... Kf1 {[%clk
0:00:07.7]} 74. Qh3 {[%clk 0:00:07.5]} 74... Bb8 {[%clk 0:00:05.7]} 75. Kf3
{[%clk 0:00:07.1]} 1-0

[Event "Early-Titled-Tuesday-Blitz-December-26-2023"]
[Site "Chess.com"]
[Date "2023.12.26"]
[Round "3"]
[White "sheldons73tshirt"]
[Black "Aleksandar-Topalov"]
[Result "0-1"]
[WhiteElo "2492"]
[BlackElo "2363"]
[TimeControl "180+1"]
[EndTime "8:29:30 PST"]
[Termination "Aleksandar-Topalov won on time"]

1. e4 {[%clk 0:02:59.6]} 1... e6 {[%clk 0:02:59.7]} 2. d4 {[%clk 0:02:59.4]}
2... d5 {[%clk 0:02:59.8]} 3. e5 {[%clk 0:02:57.1]} 3... Qd7 {[%clk 0:02:58.1]}
4. c3 {[%clk 0:02:58]} 4... b6 {[%clk 0:02:58.1]} 5. Nf3 {[%clk 0:02:55.7]} 5...
Ba6 {[%clk 0:02:57.6]} 6. Bxa6 {[%clk 0:02:54.4]} 6... Nxa6 {[%clk 0:02:57.8]}
7. O-O {[%clk 0:02:55.3]} 7... Ne7 {[%clk 0:02:56.5]} 8. a4 {[%clk 0:02:51.4]}
8... c5 {[%clk 0:02:54.6]} 9. a5 {[%clk 0:02:50.8]} 9... b5 {[%clk 0:02:55]} 10.
dxc5 {[%clk 0:02:36.1]} 10... Nxc5 {[%clk 0:02:53.8]} 11. Nd4 {[%clk 0:02:37]}
11... a6 {[%clk 0:02:52.5]} 12. Nd2 {[%clk 0:02:33.1]} 12... g6 {[%clk
0:02:40.5]} 13. Qe2 {[%clk 0:02:31.7]} 13... h6 {[%clk 0:02:34.7]} 14. Kh1
{[%clk 0:02:25.6]} 14... Nc6 {[%clk 0:02:33.3]} 15. f4 {[%clk 0:02:16.1]} 15...
h5 {[%clk 0:02:30]} 16. b3 {[%clk 0:02:02.5]} 16... Qc7 {[%clk 0:02:13.2]} 17.
Nxc6 {[%clk 0:01:50.5]} 17... Qxc6 {[%clk 0:02:11.4]} 18. Ba3 {[%clk 0:01:51.2]}
18... Be7 {[%clk 0:01:52.6]} 19. Bxc5 {[%clk 0:01:49.8]} 19... Bxc5 {[%clk
0:01:50.1]} 20. c4 {[%clk 0:01:46.3]} 20... O-O {[%clk 0:01:35.2]} 21. Qf3
{[%clk 0:01:34.9]} 21... Rfd8 {[%clk 0:01:28.3]} 22. Rfc1 {[%clk 0:01:21.2]}
22... Rac8 {[%clk 0:01:20.5]} 23. cxb5 {[%clk 0:01:09.9]} 23... Qxb5 {[%clk
0:01:17.3]} 24. Nf1 {[%clk 0:01:01.2]} 24... Bb4 {[%clk 0:01:12.8]} 25. Qd1
{[%clk 0:00:33.5]} 25... Bxa5 {[%clk 0:01:06.6]} 26. Ng3 {[%clk 0:00:31.8]}
26... Bc3 {[%clk 0:00:46.9]} 27. Rab1 {[%clk 0:00:26.4]} 27... h4 {[%clk
0:00:46.3]} 28. Ne2 {[%clk 0:00:25.3]} 28... Bb4 {[%clk 0:00:42.9]} 29. Nd4
{[%clk 0:00:25.3]} 29... Qb6 {[%clk 0:00:38.3]} 30. h3 {[%clk 0:00:19.5]} 30...
Bc5 {[%clk 0:00:28.8]} 31. Nf3 {[%clk 0:00:19.6]} 31... Be3 {[%clk 0:00:28.1]}
32. Rxc8 {[%clk 0:00:19.2]} 32... Rxc8 {[%clk 0:00:28.1]} 33. Nxh4 {[%clk
0:00:17.5]} 33... Bxf4 {[%clk 0:00:28.1]} 34. Qg4 {[%clk 0:00:16.9]} 34... Bxe5
{[%clk 0:00:21.4]} 35. Rf1 {[%clk 0:00:14.5]} 35... Kg7 {[%clk 0:00:18.3]} 36.
Nf3 {[%clk 0:00:11.5]} 36... Bf6 {[%clk 0:00:17.7]} 37. Ng5 {[%clk 0:00:10.1]}
37... Bxg5 {[%clk 0:00:15.1]} 38. Qxg5 {[%clk 0:00:11]} 38... Qd8 {[%clk
0:00:15.2]} 39. Qe5+ {[%clk 0:00:10.6]} 39... Kg8 {[%clk 0:00:14.5]} 40. Qf4
{[%clk 0:00:07.6]} 40... Qe7 {[%clk 0:00:13.8]} 41. Qa4 {[%clk 0:00:08.3]} 41...
Rb8 {[%clk 0:00:12]} 42. Rc1 {[%clk 0:00:07.2]} 42... Kg7 {[%clk 0:00:11]} 43.
Qd4+ {[%clk 0:00:07]} 43... Qf6 {[%clk 0:00:10.4]} 44. Qa4 {[%clk 0:00:07.9]}
44... Qb2 {[%clk 0:00:09.9]} 45. Rf1 {[%clk 0:00:07.2]} 45... Qxb3 {[%clk
0:00:09.6]} 46. Qd7 {[%clk 0:00:06.7]} 46... Rf8 {[%clk 0:00:06.3]} 47. Qe7
{[%clk 0:00:07.1]} 47... Qc3 {[%clk 0:00:05.9]} 48. Qa7 {[%clk 0:00:06]} 48...
Qe5 {[%clk 0:00:05.7]} 49. Qxa6 {[%clk 0:00:05.3]} 49... d4 {[%clk 0:00:05.9]}
50. Qa1 {[%clk 0:00:04.9]} 50... Qd5 {[%clk 0:00:04.7]} 51. Rd1 {[%clk
0:00:04.2]} 51... e5 {[%clk 0:00:05.3]} 52. Qb1 {[%clk 0:00:04.2]} 52... e4
{[%clk 0:00:04.8]} 53. Qa1 {[%clk 0:00:04.2]} 53... Rd8 {[%clk 0:00:05.4]} 54.
h4 {[%clk 0:00:03.7]} 54... e3 {[%clk 0:00:05.8]} 55. Qb1 {[%clk 0:00:03.2]}
55... Kg8 {[%clk 0:00:05.6]} 56. Qd3 {[%clk 0:00:03]} 56... Qe5 {[%clk 0:00:04]}
57. Re1 {[%clk 0:00:03.4]} 57... Qf4 {[%clk 0:00:04.1]} 58. Qe2 {[%clk
0:00:03.1]} 58... Qxh4+ {[%clk 0:00:04.2]} 59. Kg1 {[%clk 0:00:04]} 59... Qf2+
{[%clk 0:00:04.1]} 60. Qxf2 {[%clk 0:00:04.2]} 60... exf2+ {[%clk 0:00:04.3]}
61. Kxf2 {[%clk 0:00:05.1]} 61... d3 {[%clk 0:00:04.1]} 62. Rd1 {[%clk 0:00:06]}
62... Kg7 {[%clk 0:00:04.6]} 63. Ke3 {[%clk 0:00:06.5]} 63... f5 {[%clk
0:00:05.1]} 64. Kd2 {[%clk 0:00:07.1]} 64... Kf6 {[%clk 0:00:04.8]} 65. Re1
{[%clk 0:00:07.8]} 65... f4 {[%clk 0:00:04.9]} 66. Rf1 {[%clk 0:00:07.8]} 66...
Kf5 {[%clk 0:00:05.3]} 67. g3 {[%clk 0:00:08.1]} 67... g5 {[%clk 0:00:04.6]} 68.
gxf4 {[%clk 0:00:08.4]} 68... gxf4 {[%clk 0:00:05]} 69. Rf3 {[%clk 0:00:08]}
69... Rd4 {[%clk 0:00:04.1]} 70. Rh3 {[%clk 0:00:05.9]} 70... Ke4 {[%clk
0:00:04.3]} 71. Rh8 {[%clk 0:00:05.8]} 71... Rd5 {[%clk 0:00:03.8]} 72. Re8+
{[%clk 0:00:05.7]} 72... Kf3 {[%clk 0:00:04.4]} 73. Re1 {[%clk 0:00:05.1]} 73...
Kf2 {[%clk 0:00:04.1]} 74. Re8 {[%clk 0:00:04.6]} 74... f3 {[%clk 0:00:04.2]}
75. Rh8 {[%clk 0:00:04.8]} 75... Rg5 {[%clk 0:00:03.7]} 76. Kxd3 {[%clk
0:00:03.8]} 76... Rd5+ {[%clk 0:00:03.2]} 77. Ke4 {[%clk 0:00:03]} 77... Rg5
{[%clk 0:00:03]} 78. Rf8 {[%clk 0:00:03]} 78... Rg4+ {[%clk 0:00:03]} 79. Kd3
{[%clk 0:00:02.8]} 79... Kg2 {[%clk 0:00:02]} 80. Ke3 {[%clk 0:00:02.8]} 80...
Rg3 {[%clk 0:00:01.5]} 0-1

[Event "Early-Titled-Tuesday-Blitz-December-26-2023"]
[Site "Chess.com"]
[Date "2023.12.26"]
[Round "3"]
[White "PedroGil25"]
[Black "ProfessorChess101"]
[Result "1/2-1/2"]
[WhiteElo "2382"]
[BlackElo "2600"]
[TimeControl "180+1"]
[EndTime "8:29:42 PST"]
[Termination "Game drawn by repetition"]

1. e4 {[%clk 0:03:00.2]} 1... c5 {[%clk 0:02:58.2]} 2. Nf3 {[%clk 0:03:00.2]}
2... Nc6 {[%clk 0:02:49.1]} 3. Bb5 {[%clk 0:02:59.8]} 3... e5 {[%clk 0:02:48.5]}
4. O-O {[%clk 0:02:58]} 4... Bd6 {[%clk 0:02:48.6]} 5. d3 {[%clk 0:02:58.1]}
5... Nge7 {[%clk 0:02:46.2]} 6. a4 {[%clk 0:02:56.2]} 6... O-O {[%clk
0:02:45.3]} 7. Nc3 {[%clk 0:02:53.4]} 7... a6 {[%clk 0:02:37.8]} 8. Bc4 {[%clk
0:02:52.5]} 8... Rb8 {[%clk 0:02:36]} 9. Be3 {[%clk 0:02:35.5]} 9... Nd4 {[%clk
0:02:30.1]} 10. a5 {[%clk 0:02:29]} 10... Bc7 {[%clk 0:02:19.8]} 11. Nd5 {[%clk
0:02:23.6]} 11... Nxd5 {[%clk 0:02:11.1]} 12. Bxd5 {[%clk 0:02:24.5]} 12... d6
{[%clk 0:02:11.5]} 13. Nxd4 {[%clk 0:02:18.7]} 13... cxd4 {[%clk 0:02:09.2]} 14.
Bd2 {[%clk 0:02:19.3]} 14... Be6 {[%clk 0:01:57.2]} 15. Bxe6 {[%clk 0:02:18.5]}
15... fxe6 {[%clk 0:01:58.1]} 16. Qg4 {[%clk 0:02:18.4]} 16... Qe7 {[%clk
0:01:56.4]} 17. f4 {[%clk 0:02:17.3]} 17... exf4 {[%clk 0:01:55.5]} 18. Bxf4
{[%clk 0:02:15.8]} 18... Rf7 {[%clk 0:01:46.8]} 19. Bd2 {[%clk 0:02:15.4]} 19...
Rbf8 {[%clk 0:01:44]} 20. Rxf7 {[%clk 0:01:59]} 20... Qxf7 {[%clk 0:01:43.1]}
21. Qe2 {[%clk 0:01:58]} 21... Qd7 {[%clk 0:01:36.4]} 22. c3 {[%clk 0:01:41.9]}
22... dxc3 {[%clk 0:01:25.4]} 23. Bxc3 {[%clk 0:01:42.8]} 23... Bb8 {[%clk
0:01:11.3]} 24. Rf1 {[%clk 0:01:38.6]} 24... Ba7+ {[%clk 0:01:09.3]} 25. Kh1
{[%clk 0:01:37.8]} 25... Rxf1+ {[%clk 0:01:05.7]} 26. Qxf1 {[%clk 0:01:38.7]}
26... e5 {[%clk 0:01:05.5]} 27. g3 {[%clk 0:01:28.7]} 27... h5 {[%clk
0:00:57.9]} 28. Kg2 {[%clk 0:01:27.3]} 28... h4 {[%clk 0:00:56.4]} 29. Qf5
{[%clk 0:01:25.3]} 29... Qxf5 {[%clk 0:00:46.3]} 30. exf5 {[%clk 0:01:26.2]}
30... hxg3 {[%clk 0:00:45.8]} 31. hxg3 {[%clk 0:01:26.2]} 31... Kf7 {[%clk
0:00:46.7]} 32. Kf3 {[%clk 0:01:26]} 32... Kf6 {[%clk 0:00:46.8]} 33. g4 {[%clk
0:01:26.2]} 33... d5 {[%clk 0:00:37.7]} 34. b3 {[%clk 0:01:24.3]} 34... Bc5
{[%clk 0:00:36]} 35. Bd2 {[%clk 0:01:20.1]} 35... Bd4 {[%clk 0:00:31.2]} 36. Be1
{[%clk 0:01:20.1]} 36... Kf7 {[%clk 0:00:19]} 37. Bd2 {[%clk 0:01:13.3]} 37...
g6 {[%clk 0:00:18.7]} 38. Be1 {[%clk 0:01:09.2]} 38... Bc5 {[%clk 0:00:16.1]}
39. Bc3 {[%clk 0:01:07.5]} 39... gxf5 {[%clk 0:00:11.2]} 40. gxf5 {[%clk
0:01:05.3]} 40... Kf6 {[%clk 0:00:10.8]} 41. Kg4 {[%clk 0:01:05.8]} 41... Bd6
{[%clk 0:00:09.5]} 42. Be1 {[%clk 0:01:04.6]} 42... e4 {[%clk 0:00:09.2]} 43.
dxe4 {[%clk 0:01:05.5]} 43... dxe4 {[%clk 0:00:10.1]} 44. Bc3+ {[%clk
0:01:00.8]} 44... Be5 {[%clk 0:00:06.4]} 45. Be1 {[%clk 0:00:59.7]} 45... Bc7
{[%clk 0:00:04.8]} 46. Bc3+ {[%clk 0:00:56]} 46... Be5 {[%clk 0:00:05.1]} 47.
Be1 {[%clk 0:00:55.3]} 47... Ke7 {[%clk 0:00:04.9]} 48. Bh4+ {[%clk 0:00:53]}
48... Kd6 {[%clk 0:00:05]} 49. Be1 {[%clk 0:00:49.9]} 49... Kd5 {[%clk
0:00:04.7]} 50. Kg5 {[%clk 0:00:50.4]} 50... Kd6 {[%clk 0:00:02.5]} 51. Kg6
{[%clk 0:00:45.4]} 51... Ke7 {[%clk 0:00:02.5]} 52. Bh4+ {[%clk 0:00:44.9]}
52... Kd7 {[%clk 0:00:02.8]} 53. f6 {[%clk 0:00:45.3]} 53... e3 {[%clk
0:00:03.1]} 54. f7 {[%clk 0:00:43.6]} 54... Bd6 {[%clk 0:00:03.6]} 55. Kf5
{[%clk 0:00:40.8]} 55... e2 {[%clk 0:00:02.7]} 56. Ke4 {[%clk 0:00:40]} 56...
Kc6 {[%clk 0:00:02.7]} 57. Kd3 {[%clk 0:00:38.3]} 57... Kb5 {[%clk 0:00:03]} 58.
Be1 {[%clk 0:00:38.2]} 58... Bf8 {[%clk 0:00:02]} 59. Kxe2 {[%clk 0:00:38.3]}
59... b6 {[%clk 0:00:02.2]} 60. axb6 {[%clk 0:00:38.2]} 60... Kxb6 {[%clk
0:00:03.1]} 61. Kd3 {[%clk 0:00:38.9]} 61... Kb5 {[%clk 0:00:02.6]} 62. Ke4
{[%clk 0:00:38.1]} 62... a5 {[%clk 0:00:03.3]} 63. Kd5 {[%clk 0:00:37.7]} 63...
a4 {[%clk 0:00:03.6]} 64. bxa4+ {[%clk 0:00:37.5]} 64... Kxa4 {[%clk 0:00:04.5]}
65. Ke6 {[%clk 0:00:38.1]} 65... Kb5 {[%clk 0:00:05]} 66. Kd7 {[%clk 0:00:38.3]}
66... Kc5 {[%clk 0:00:05]} 67. Ke8 {[%clk 0:00:33]} 67... Bh6 {[%clk 0:00:05.1]}
68. Bd2 {[%clk 0:00:31.9]} 68... Bg7 {[%clk 0:00:04.6]} 69. Bc3 {[%clk
0:00:32.5]} 69... Bh6 {[%clk 0:00:04.7]} 70. Kd7 {[%clk 0:00:29.2]} 70... Kd5
{[%clk 0:00:04.7]} 71. Ke7 {[%clk 0:00:29.4]} 71... Bg5+ {[%clk 0:00:02.1]} 72.
Bf6 {[%clk 0:00:27.8]} 72... Bh6 {[%clk 0:00:03]} 73. Bb2 {[%clk 0:00:19.8]}
73... Bg5+ {[%clk 0:00:03.3]} 74. Kd7 {[%clk 0:00:19.5]} 74... Bh6 {[%clk
0:00:03.5]} 75. Ba3 {[%clk 0:00:18.6]} 75... Ke5 {[%clk 0:00:03.6]} 76. Ke7
{[%clk 0:00:18.8]} 76... Kf5 {[%clk 0:00:03.7]} 77. Ke8 {[%clk 0:00:19.6]} 77...
Kg6 {[%clk 0:00:04]} 78. Bf8 {[%clk 0:00:19.7]} 78... Bd2 {[%clk 0:00:03.2]} 79.
Bd6 {[%clk 0:00:19.9]} 79... Bh6 {[%clk 0:00:03.4]} 80. Bf4 {[%clk 0:00:20.3]}
80... Bg7 {[%clk 0:00:03.6]} 81. Be5 {[%clk 0:00:20.9]} 81... Bh6 {[%clk
0:00:04.1]} 82. Bd6 {[%clk 0:00:21.8]} 82... Bg7 {[%clk 0:00:03.9]} 83. Bf8
{[%clk 0:00:22.7]} 83... Be5 {[%clk 0:00:03.2]} 84. Bb4 {[%clk 0:00:23.1]} 84...
Bg7 {[%clk 0:00:03.7]} 85. Bd2 {[%clk 0:00:23.4]} 85... Kh7 {[%clk 0:00:02.9]}
86. Be3 {[%clk 0:00:23.2]} 86... Kg6 {[%clk 0:00:02.8]} 87. Bf4 {[%clk
0:00:23.5]} 87... Kh7 {[%clk 0:00:02.3]} 88. Be5 {[%clk 0:00:23.8]} 88... Bh6
{[%clk 0:00:02.1]} 89. Ke7 {[%clk 0:00:24.2]} 89... Kg6 {[%clk 0:00:02.3]} 90.
Ke6 {[%clk 0:00:24.5]} 90... Bf8 {[%clk 0:00:02]} 91. Bd6 {[%clk 0:00:25.4]}
91... Bh6 {[%clk 0:00:02.5]} 92. Bf4 {[%clk 0:00:24.3]} 92... Bg7 {[%clk
0:00:02.9]} 93. Be5 {[%clk 0:00:24.6]} 93... Bh6 {[%clk 0:00:03.1]} 94. Ke7
{[%clk 0:00:24.8]} 94... Kh7 {[%clk 0:00:02.6]} 95. Ke8 {[%clk 0:00:25.2]} 95...
Kg6 {[%clk 0:00:03]} 96. Bf4 {[%clk 0:00:25.7]} 96... Bg7 {[%clk 0:00:03.6]} 97.
Be5 {[%clk 0:00:26]} 97... Bh6 {[%clk 0:00:04.3]} 1/2-1/2